fUST/lending_fUST_20250915
["ID","MTS","AMOUNT","RATE_DAILY","PERIOD"]
[385599530,1757923835985,-480.0,0.00024657,3]
[385599532,1757923835995,-480.0,0.00024657,3]
[385599533,1757923836004,-480.0,0.00024657,3]
[385599534,1757923836014,-480.0,0.00024657,3]
[385599535,1757923836027,-480.0,0.00024657,3]
[385599536,1757923836037,-485.37008688,0.00024657,3]
[385599537,1757923836047,-567.19672732,0.00024657,3]
[385599538,1757923836056,-485.14851744,0.00024657,3]
[385599539,1757923836065,-200.0,0.00024658,15]
[385599540,1757923836074,-502.04315981,0.00024673,2]
[385599541,1757923836083,-501.210113,0.00024673,2]
[385599542,1757923836092,-500.0,0.00024673,2]
[385599543,1757923836102,-502.73658448,0.00024673,2]
[385599544,1757923836111,-500.0,0.00024673,2]
[385599545,1757923836121,-500.0,0.00024673,2]
[385599546,1757923836130,-500.0,0.00024673,2]
[385599547,1757923836140,-15527.30901649,0.000247,2]
[385599548,1757923836149,-160.0,0.00024705,2]
[385599549,1757923836159,-800.0,0.00024774,2]
[385599550,1757923836168,-158.56763096,0.0002479,2]
[385599551,1757923836178,-8177.05720653,0.000248,2]
[385599552,1757923836187,-357.0,0.00024827,2]
[385599553,1757923836196,-500.0,0.00024873,2]
[385599554,1757923836206,-162.61551122,0.00024873,2]
[385599555,1757923836215,-253.86373721,0.00024873,2]
[385599556,1757923836225,-500.0,0.00024873,2]
[385599557,1757923836234,-500.0,0.00024873,2]
[385599558,1757923836244,-500.0,0.00024873,2]
[385599559,1757923836253,-500.0,0.00024873,2]
[385599560,1757923836263,-500.0,0.00024873,2]
[385599561,1757923836272,-500.0,0.00024873,2]
[385599562,1757923836282,-500.0,0.00024873,2]
[385599563,1757923836291,-500.0,0.00024873,2]
[385599564,1757923836300,-500.0,0.00024873,2]
[385599565,1757923836310,-500.0,0.00024873,2]
[385599566,1757923836319,-452.76294456,0.00024873,2]
[385599589,1757923839042,-609.65,0.00024657,3]
[385599590,1757923839052,-151.0,0.000247,7]
[385599591,1757923839061,-47.23705544,0.00024873,2]
[385599592,1757923839070,-500.0,0.00024873,2]
[385599593,1757923839079,-501.61438964,0.00024873,2]
[385599594,1757923839091,-500.0,0.00024873,2]
[385599595,1757923839100,-500.0,0.00024873,2]
[385599596,1757923839109,-500.0,0.00024873,2]
[385599597,1757923839119,-2725.68573551,0.0002489,2]
[385599598,1757923839128,-313.1259326,0.00024896,2]
[385599599,1757923839137,-2363.57980723,0.000249,2]
[385599600,1757923839147,-34262.48,0.000249,7]
[385599601,1757923839156,-25.62757958,0.000249,7]
[385599602,1757923839168,-126.39823442,0.000249,7]
[385599603,1757923839178,-151.0,0.000249,7]
[385599604,1757923839188,-151.0,0.000249,7]
[385599605,1757923839197,-151.0,0.000249,7]
[385599606,1757923839207,-151.0,0.000249,7]
[385599607,1757923839218,-152.188812,0.000249,7]
[385599608,1757923839227,-151.0,0.000249,7]
[385599609,1757923839237,-151.671689,0.000249,7]
[385599610,1757923839246,-151.0,0.000249,7]
[385599611,1757923839256,-155.78868,0.000249,7]
[385599612,1757923839265,-151.0,0.000249,7]
[385599613,1757923839275,-151.0,0.000249,7]
[385599614,1757923839283,-151.0,0.000249,7]
[385599616,1757923839293,-151.0,0.000249,7]
[385599618,1757923839302,-153.672579,0.000249,7]
[385599619,1757923839311,-151.0,0.000249,7]
[385599620,1757923839320,-152.943428,0.000249,7]
[385599621,1757923839330,-152.620542,0.000249,7]
[385599622,1757923839341,-153.492164,0.000249,7]
[385599623,1757923839350,-151.0,0.000249,7]
[385599624,1757923839359,-151.543492,0.000249,7]
[385599625,1757923839368,-194.332647,0.000249,7]
[385599626,1757923839378,-151.0,0.000249,7]
[385599627,1757923839387,-151.0,0.000249,7]
[385599628,1757923839396,-151.0,0.000249,7]
[385599629,1757923839405,-151.0,0.000249,7]
[385599630,1757923839414,-151.0,0.000249,7]
[385599631,1757923839425,-151.0,0.000249,7]
[385599632,1757923839434,-151.0,0.000249,7]
[385599633,1757923839444,-151.0,0.000249,7]
[385599634,1757923839453,-151.0,0.000249,7]
[385599635,1757923839463,-151.0,0.000249,7]
[385599636,1757923839472,-153.485707,0.000249,7]
[385599637,1757923839482,-153.257167,0.000249,7]
[385599638,1757923839491,-151.0,0.000249,7]
[385599639,1757923839500,-154.179983,0.000249,7]
[385599640,1757923839509,-153.537344,0.000249,7]
[385599641,1757923839519,-151.0,0.000249,7]
[385599642,1757923839528,-153.40183,0.000249,7]
[385599643,1757923839538,-151.0,0.000249,7]
[385599645,1757923839547,-151.0,0.000249,7]
[385599646,1757923839556,-151.0,0.000249,7]
[385599648,1757923839566,-153.200989,0.000249,7]
[385599649,1757923839575,-162.342474,0.000249,7]
[385599650,1757923839584,-157.776083,0.000249,7]
[385599652,1757923839593,-152.093225,0.000249,7]
[385599654,1757923839602,-151.0,0.000249,7]
[385599655,1757923839612,-151.0,0.000249,7]
[385599657,1757923839622,-155.32527,0.000249,7]
[385599658,1757923839632,-151.0,0.000249,7]
[385599659,1757923839642,-151.0,0.000249,7]
[385599660,1757923839651,-151.0,0.000249,7]
[385599661,1757923839660,-152.926508,0.000249,7]
[385599662,1757923839669,-250.001842,0.000249,7]
[385599663,1757923839679,-250.001842,0.000249,7]
[385599664,1757923839689,-250.001842,0.000249,7]
[385599665,1757923839700,-250.001842,0.000249,7]
[385599666,1757923839711,-250.001842,0.000249,7]
[385599667,1757923839722,-250.001842,0.000249,7]
[385599668,1757923839732,-250.001842,0.000249,7]
[385599669,1757923839741,-250.001842,0.000249,7]
[385599670,1757923839750,-151.0,0.000249,7]
[385599671,1757923839761,-151.0,0.000249,7]
[385599672,1757923839771,-151.0,0.000249,7]
[385599673,1757923839780,-151.0,0.000249,7]
[385599674,1757923839789,-152.860732,0.000249,7]
[385599675,1757923839799,-151.0,0.000249,7]
[385599676,1757923839810,-151.0,0.000249,7]
[385599677,1757923839820,-152.022354,0.000249,7]
[385599678,1757923839830,-151.0,0.000249,7]
[385599679,1757923839839,-152.194722,0.000249,7]
[385599680,1757923839849,-151.0,0.000249,7]
[385599681,1757923839859,-29059.66056197,0.000249,2]
[385599682,1757923839872,-9112.69694399,0.000249,2]
[385599683,1757923839883,-16721.71382074,0.000249,2]
[385599684,1757923839895,-1301.12289125,0.000249,2]
[385599685,1757923839907,-4456.00643768,0.000249,2]
[385599686,1757923839918,-963.85330514,0.000249,2]
[385599687,1757923839929,-1003.90200101,0.000249,2]
[385599700,1757923841306,-9764.54059942,0.000249,2]
[385599701,1757923841317,-95259.97059071,0.000249,2]
[385599765,1757923843948,-5785.27669707,0.000249,2]
[385599770,1757923844048,-29999.9999,0.000249,2]
[385599771,1757923844061,-91000.0000002,0.000249,2]
[385599776,1757923844155,-256.2,0.000249,2]
[385600067,1757923846975,-14410.91184425,0.000249,2]
[385600069,1757923847123,-11394.80812821,0.000249,2]
[385600070,1757923847135,-4172.25938739,0.000249,2]
[385600071,1757923847146,-37614.52206453,0.000249,2]
[385600072,1757923847159,-16985.60460121,0.000249,2]
[385600074,1757923847195,-611.08521223,0.000249,2]
[385608095,1757923932583,762.12022386,0.000199,2]
[385611532,1757924112195,736.71621634,0.000199,2]
[385611535,1757924306705,44.66320318,0.000199,2]
[385611536,1757924306733,667.4958062,0.000199,2]
[385611541,1757924494594,688.42037556,0.000199,2]
[385611543,1757924676273,665.47302965,0.000199,2]
[385611544,1757924742539,180.0,0.00019315,3]
[385611562,1757924836126,-609.14877616,0.00020938,2]
[385611565,1757924861797,662.94585955,0.000199,2]
[385611566,1757924868353,7135.67492904,0.00018,2]
[385611567,1757924868377,10000.01,0.00018,2]
[385611568,1757924868401,10000.01,0.00018,2]
[385611569,1757924868426,10000.01,0.00018,2]
[385611570,1757924868451,10000.01,0.00018,2]
[385611571,1757924868475,10000.01,0.00018,2]
[385611572,1757924868498,4322.91939407,0.00018,2]
[385611574,1757924913572,5677.09060593,0.0002,2]
[385611575,1757924913600,10000.01,0.0002,2]
[385611576,1757924913629,4322.89939407,0.0002,2]
[385611586,1757924954140,-1411.2,0.00020404,2]
[385611587,1757924957144,-3588.8,0.00020404,2]
[385611588,1757924957164,-1366.2418719,0.0002061,2]
[385611589,1757924957188,-5000.0,0.00020729,2]
[385611590,1757924957208,-300.0,0.00020937,2]
[385611591,1757924957230,-662.94585936,0.00021149,2]
[385611592,1757924957250,-1185.32391914,0.00022152,2]
[385611654,1757925032018,-5000.0,0.00020521,2]
[385611656,1757925032029,-1200.0,0.00020727,2]
[385611658,1757925032038,-5000.0,0.00020728,2]
[385611660,1757925032048,-300.0,0.00020936,2]
[385611661,1757925032057,-160.0,0.00020936,2]
[385611662,1757925032066,-662.94585936,0.00022398,2]
[385611663,1757925032076,-238.59196,0.00022764,2]
[385611664,1757925032085,-420.0,0.00022775,2]
[385611666,1757925032094,-1833.85706538,0.00022998,2]
[385611668,1757925032104,-160.0,0.00023191,2]
[385611670,1757925032113,-217.82061966,0.00023202,2]
[385611671,1757925032122,-160.0,0.00023202,2]
[385611673,1757925032132,-662.94585936,0.00023647,2]
[385611675,1757925032141,-904.98086346,0.00024556,2]
[385611676,1757925032150,-22975.61992677,0.0002465,2]
[385611677,1757925032159,-500.0,0.00024656,2]
[385611678,1757925032170,-500.0,0.00024656,2]
[385611679,1757925032180,-500.0,0.00024656,2]
[385611680,1757925032190,-500.0,0.00024656,2]
[385611681,1757925032200,-430.0,0.00024656,2]
[385611682,1757925032209,-500.0,0.00024657,3]
[385611683,1757925032219,-520.0,0.00024657,3]
[385611684,1757925032228,-583.5,0.00024657,3]
[385611685,1757925032240,-475.92,0.00024657,3]
[385611686,1757925032251,-480.0,0.00024657,3]
[385611687,1757925032261,-480.0,0.00024657,3]
[385611688,1757925032271,-480.0,0.00024657,3]
[385611689,1757925032281,-480.0,0.00024657,3]
[385611690,1757925032290,-480.0,0.00024657,3]
[385611691,1757925032301,-225.5653155,0.00024657,3]
[385611692,1757925032311,-480.0,0.00024657,3]
[385611693,1757925032320,-268.07,0.00024657,3]
[385611694,1757925032329,-480.0,0.00024657,3]
[385611695,1757925032339,-480.0,0.00024657,3]
[385611696,1757925032347,-480.0,0.00024657,3]
[385611697,1757925032357,-480.0,0.00024657,3]
[385611698,1757925032367,-183.69,0.00024657,3]
[385611699,1757925032376,-480.0,0.00024657,3]
[385611700,1757925032386,-480.0,0.00024657,3]
[385611701,1757925032396,-480.0,0.00024657,3]
[385611702,1757925032405,-480.0,0.00024657,3]
[385611703,1757925032418,-480.0,0.00024657,3]
[385611704,1757925032428,-480.0,0.00024657,3]
[385611705,1757925032438,-480.0,0.00024657,3]
[385611706,1757925032447,-480.0,0.00024657,3]
[385611707,1757925032460,-480.0,0.00024657,3]
[385611708,1757925032469,-482.51337109,0.00024657,3]
[385611709,1757925032478,-344.24244155,0.00024657,3]
[385611710,1757925032487,-486.30809987,0.00024657,3]
[385611711,1757925032498,-396.91,0.00024657,3]
[385611712,1757925032506,-218.0,0.00024657,3]
[385611713,1757925032515,-608.42,0.00024657,3]
[385611714,1757925032524,-480.0,0.00024657,3]
[385611715,1757925032534,-480.0,0.00024657,3]
[385611716,1757925032543,-480.0,0.00024657,3]
[385611717,1757925032552,-480.0,0.00024657,3]
[385611718,1757925032560,-480.0,0.00024657,3]
[385611719,1757925032569,-480.0,0.00024657,3]
[385611720,1757925032579,-487.18333341,0.00024657,3]
[385611721,1757925032588,-484.64130294,0.00024657,3]
[385611722,1757925032597,-464.76216153,0.00024657,3]
[385611723,1757925032605,-480.0,0.00024657,3]
[385611724,1757925032614,-480.0,0.00024657,3]
[385611725,1757925032623,-480.0,0.00024657,3]
[385611726,1757925032632,-480.0,0.00024657,3]
[385611727,1757925032641,-847.45018724,0.00024657,3]
[385611728,1757925032650,-9090.86,0.00024657,3]
[385611729,1757925032659,-480.0,0.00024657,3]
[385611730,1757925032667,-480.0,0.00024657,3]
[385611731,1757925032677,-751.15,0.00024657,3]
[385611732,1757925032686,-480.0,0.00024657,3]
[385611733,1757925032695,-480.0,0.00024657,3]
[385611734,1757925032704,-500.0,0.00024657,2]
[385611735,1757925032713,-500.0,0.00024657,2]
[385611736,1757925032722,-334.25,0.00024657,3]
[385611737,1757925032730,-236.84663276,0.00024657,3]
[385611738,1757925032740,-237.7,0.00024657,3]
[385611739,1757925032751,-480.0,0.00024657,3]
[385611740,1757925032760,-480.0,0.00024657,3]
[385611741,1757925032769,-525.59,0.00024657,3]
[385611742,1757925032778,-503.38685104,0.00024657,3]
[385611743,1757925032787,-480.0,0.00024657,3]
[385611744,1757925032796,-480.0,0.00024657,3]
[385611745,1757925032805,-480.0,0.00024657,3]
[385611746,1757925032814,-480.0,0.00024657,3]
[385611747,1757925032823,-482.82137322,0.00024657,3]
[385611748,1757925032832,-263.20992213,0.00024657,3]
[385611749,1757925032841,-210.22,0.00024657,3]
[385611750,1757925032850,-480.0,0.00024657,3]
[385611751,1757925032859,-480.0,0.00024657,3]
[385611752,1757925032868,-482.2308827,0.00024657,3]
[385611753,1757925032877,-9.64042841,0.00024657,3]
[385611754,1757925032890,-582.48957159,0.00024657,3]
[385611755,1757925032899,-600.95,0.00024657,3]
[385611756,1757925032909,-486.69533552,0.00024657,3]
[385611757,1757925032918,-480.0,0.00024657,3]
[385611758,1757925032928,-489.74970856,0.00024657,3]
[385611759,1757925032938,-510.98,0.00024657,3]
[385611760,1757925032947,-540.27357921,0.00024657,3]
[385611761,1757925032957,-383.04,0.00024657,3]
[385611762,1757925032966,-151.88,0.00024657,3]
[385611763,1757925032975,-480.0,0.00024657,3]
[385611764,1757925032985,-498.54,0.00024657,3]
[385611765,1757925032994,-151.0,0.00024658,2]
[385611766,1757925033004,-500.0,0.00024658,2]
[385611767,1757925033012,-151.0,0.00024658,2]
[385611768,1757925033022,-151.0,0.00024658,2]
[385611769,1757925033031,-151.0,0.00024658,2]
[385611770,1757925033042,-500.0,0.00024658,2]
[385611771,1757925033051,-157.17790768,0.00024658,2]
[385611772,1757925033061,-151.0,0.00024658,2]
[385611773,1757925033070,-151.0,0.00024658,2]
[385611774,1757925033079,-587.0,0.00024776,2]
[385611775,1757925033089,-1734.01628668,0.000248,4]
[385611776,1757925033098,-12109.61721691,0.000248,2]
[385611793,1757925042333,595.42814044,0.000199,2]
[385611796,1757925043420,-456.77,0.00021149,2]
[385611799,1757925043479,-138.65814028,0.00021149,2]
[385611800,1757925043490,-595.42814028,0.00022398,2]
[385611801,1757925043501,-595.42814028,0.00023647,2]
[385611803,1757925043512,-1191.70530033,0.0002441,2]
[385612037,1757925046364,-472.95933375,0.00022156,2]
[385612044,1757925046427,-2500.0,0.00022156,2]
[385612095,1757925047725,-1992.41119211,0.00022156,2]
[385612097,1757925047735,-1035.93275553,0.0002441,2]
[385612099,1757925047748,-688.85120891,0.0002441,2]
[385613179,1757925074108,500.0,0.00010959,30]
[385613180,1757925074703,500.0,0.00010959,30]
[385613181,1757925075303,500.0,0.00010959,30]
[385613182,1757925075922,500.0,0.00010959,30]
[385613183,1757925077109,500.0,0.00010959,30]
[385613184,1757925078335,500.0,0.00010959,30]
[385613185,1757925079774,527.99010367,0.00010959,30]
[385613186,1757925223752,1023.77508886,0.000199,2]
[385613187,1757925298846,255.603041,0.00020107,2]
[385613189,1757925407246,996.56980672,0.000199,2]
[385613190,1757925421631,2805.73452891,0.0002015,2]
[385613191,1757925421657,2194.26547109,0.0002015,2]
[385613192,1757925430151,5000.0,0.0002015,2]
[385613193,1757925447444,2805.74452891,0.0002015,2]
[385613194,1757925447467,2194.25547109,0.0002015,2]
[385613195,1757925456517,5000.0,0.0002015,2]
[385613196,1757925473345,2805.75452891,0.0002015,2]
[385613197,1757925473368,2194.24547109,0.0002015,2]
[385613198,1757925479849,159.33,0.00016384,2]
[385613199,1757925483586,5000.0,0.0002015,2]
[385613200,1757925502172,2646.43452891,0.0002015,2]
[385613201,1757925502195,2353.56547109,0.0002015,2]
[385613202,1757925512392,2514.78911299,0.0002015,2]
[385613203,1757925529734,5000.0,0.0002015,2]
[385613204,1757925555461,131.65541592,0.0002015,2]
[385613205,1757925555483,2535.99099635,0.0002015,2]
[385613206,1757925588633,963.35081324,0.000199,2]
[385613207,1757925773638,929.15912914,0.000199,2]
[385613211,1757925926181,480.60534909,0.0002015,2]
[385613212,1757925933684,-255.603041,0.0002031,2]
[385613213,1757925943962,-3339.51951301,0.00020374,2]
[385613215,1757925953839,-10000.01,0.00020374,2]
[385613216,1757925953865,-10000.01,0.00020374,2]
[385613217,1757925954041,-3197.62498929,0.00020374,2]
[385613218,1757925954070,-309.89134597,0.00020381,2]
[385613219,1757925954100,-300.0,0.00020481,2]
[385613220,1757925954128,-300.0,0.00020481,2]
[385613221,1757925954155,-300.0,0.00020481,2]
[385613222,1757925954182,-300.0,0.00020481,2]
[385613223,1757925954279,-584.97732948,0.00020481,2]
[385613224,1757925957953,906.75003846,0.000199,2]
[385613225,1757925975848,-200.88149034,0.00020281,2]
[385613226,1757925975879,-615.02267052,0.00020481,2]
[385613227,1757925975908,-300.0,0.00020481,2]
[385613228,1757925976016,-7768.20167828,0.00020482,2]
[385613230,1757926041108,-750.57746253,0.00020482,2]
[385613231,1757926042102,-289.82340397,0.00020482,2]
[385613232,1757926151488,884.26202722,0.000199,2]
[385613233,1757926172103,-737.8959111,0.00020302,2]
[385613234,1757926172122,-1039.9065728,0.00020311,2]
[385613235,1757926172141,-1191.39745522,0.00020482,2]
[385613236,1757926172161,-1000.0,0.00020543,2]
[385613237,1757926172182,-156.52555356,0.00020924,2]
[385613238,1757926172207,-753.09670732,0.00021149,2]
[385613278,1757926232180,-131.16531985,0.00021149,2]
[385613280,1757926232190,-206.59423064,0.00021466,2]
[385613282,1757926232199,-1163.24044951,0.00021468,2]
[385613287,1757926232235,-25.39683315,0.00021468,2]
[385613289,1757926232249,-300.0,0.00021566,2]
[385613291,1757926232259,-240.0,0.00021566,2]
[385613293,1757926232268,-1200.0,0.00021566,2]
[385613295,1757926232277,-300.0,0.00021566,2]
[385613297,1757926232286,-34073.31732669,0.00021567,2]
[385613857,1757926238110,-9053.20000005,0.00021567,2]
[385613864,1757926238165,-268.61921822,0.00021567,2]
[385613870,1757926238220,-6604.86345504,0.00021567,2]
[385613872,1757926238229,-262.8226299,0.00021567,2]
[385613875,1757926238241,-937.1773701,0.00021567,2]
[385613877,1757926238251,-500.0,0.00021571,2]
[385613879,1757926238260,-300.0,0.00021571,20]
[385613881,1757926238268,-300.0,0.00021571,20]
[385613883,1757926238277,-300.0,0.00021571,20]
[385613885,1757926238286,-300.0,0.00021571,20]
[385613887,1757926238295,-300.0,0.00021571,20]
[385613889,1757926238305,-300.0,0.00021571,20]
[385613892,1757926238313,-300.0,0.00021571,20]
[385613895,1757926238322,-300.0,0.00021571,20]
[385613898,1757926238331,-300.0,0.00021571,20]
[385613900,1757926238342,-300.0,0.00021571,20]
[385613902,1757926238351,-300.0,0.00021571,20]
[385613904,1757926238359,-300.0,0.00021571,20]
[385613906,1757926238369,-300.0,0.00021571,20]
[385613908,1757926238378,-300.0,0.00021571,20]
[385613910,1757926238387,-300.0,0.00021571,20]
[385613912,1757926238396,-359.89067651,0.00021573,2]
[385613914,1757926238407,-140.10932349,0.00021573,2]
[385613916,1757926238416,-500.0,0.00021573,2]
[385613918,1757926238425,-62.59318722,0.00021573,2]
[385614076,1757926240299,-500.0,0.00021566,2]
[385614077,1757926240309,-500.0,0.00021566,2]
[385614078,1757926240319,-500.0,0.00021566,2]
[385614080,1757926240328,-500.0,0.00021566,2]
[385614082,1757926240337,-242.53373413,0.00021566,2]
[385614084,1757926240349,-500.0,0.00021566,2]
[385614086,1757926240359,-500.0,0.00021566,2]
[385614088,1757926240368,-388.91448904,0.00021566,2]
[385614090,1757926240378,-500.0,0.00021566,2]
[385614092,1757926240387,-500.0,0.00021566,2]
[385614094,1757926240396,-500.0,0.00021566,2]
[385614096,1757926240405,-500.0,0.00021566,2]
[385614098,1757926240415,-370.87754512,0.00021566,2]
[385614101,1757926240424,-500.0,0.00021566,2]
[385614102,1757926240434,-500.0,0.00021566,2]
[385614104,1757926240443,-500.0,0.00021566,2]
[385614106,1757926240452,-336.44028573,0.00021566,2]
[385614108,1757926240461,-500.0,0.00021566,2]
[385614110,1757926240470,-500.0,0.00021566,2]
[385614112,1757926240480,-500.0,0.00021566,2]
[385614114,1757926240489,-288.36826598,0.00021566,2]
[385614395,1757926243288,-220.31818964,0.00021566,2]
[385614397,1757926243298,-500.0,0.00021566,2]
[385614400,1757926243307,-500.0,0.00021566,2]
[385614402,1757926243316,-500.0,0.00021566,2]
[385614404,1757926243326,-500.0,0.00021566,2]
[385614406,1757926243335,-400.17486619,0.00021566,2]
[385614408,1757926243345,-482.16057617,0.00021566,2]
[385614410,1757926243356,-17.83942383,0.00021566,2]
[385614412,1757926243365,-500.0,0.00021566,2]
[385614414,1757926243374,-500.0,0.00021566,2]
[385614416,1757926243384,-500.0,0.00021566,2]
[385614418,1757926243394,-500.0,0.00021566,2]
[385614421,1757926243403,-500.0,0.00021566,2]
[385614423,1757926243414,-500.0,0.00021566,2]
[385614425,1757926243423,-500.0,0.00021566,2]
[385614427,1757926243432,-485.17428805,0.00021566,2]
[385614429,1757926243441,-500.0,0.00021566,2]
[385614431,1757926243450,-500.0,0.00021566,2]
[385614433,1757926243459,-500.0,0.00021566,2]
[385614435,1757926243468,-500.0,0.00021566,2]
[385614437,1757926243478,-500.0,0.00021566,2]
[385614439,1757926243487,-437.40681278,0.00021573,2]
[385614441,1757926243496,-500.0,0.00021573,2]
[385614443,1757926243506,-500.0,0.00021573,2]
[385614445,1757926243516,-501.62793363,0.00021573,2]
[385614447,1757926243526,-1062.610287,0.00021586,2]
[385614449,1757926243535,-500.0,0.00021845,2]
[385614451,1757926243544,-800.0,0.00021918,2]
[385614453,1757926243553,-500.0,0.00021978,2]
[385614455,1757926243562,-500.0,0.00021978,2]
[385614456,1757926243571,-600.0,0.00022001,20]
[385614457,1757926243580,-504.86977798,0.00022119,2]
[385614458,1757926243589,-420.63184078,0.0002212,2]
[385614459,1757926243600,-183.38261459,0.0002212,2]
[385614460,1757926243610,-1000.0,0.00022121,2]
[385614461,1757926243619,-1000.0,0.00022121,2]
[385614462,1757926243629,-1000.0,0.00022121,2]
[385614463,1757926243638,-1000.0,0.00022121,2]
[385614464,1757926243647,-1000.0,0.00022121,2]
[385614465,1757926243657,-884.26202717,0.00022398,2]
[385614466,1757926243667,-1000.0,0.00022526,2]
[385614467,1757926243676,-1500.0,0.00022668,2]
[385614468,1757926243686,-1500.0,0.00022668,2]
[385614469,1757926243695,-1500.0,0.00022668,2]
[385614470,1757926243704,-1500.0,0.00022668,2]
[385614471,1757926243713,-1500.0,0.00022668,2]
[385614472,1757926243723,-206.59423064,0.00022814,2]
[385614473,1757926243732,-186.87575349,0.00023005,2]
[385614474,1757926243742,-1500.0,0.00023074,2]
[385614475,1757926243751,-2000.0,0.00023216,2]
[385614476,1757926243760,-1147.42701485,0.00023216,2]
[385614477,1757926243769,-2000.0,0.00023216,2]
[385614478,1757926243779,-2000.0,0.00023216,2]
[385614479,1757926243788,-2000.0,0.00023216,2]
[385614480,1757926243798,-2601.93,0.00023287,2]
[385614481,1757926243807,-420.0,0.00023445,2]
[385614482,1757926243817,-342.0,0.00023446,2]
[385614483,1757926243829,-594.0,0.00023556,2]
[385614484,1757926243838,-184.797994,0.00023606,2]
[385614485,1757926243850,-2000.0,0.00023622,2]
[385614486,1757926243859,-884.26202717,0.00023647,2]
[385614487,1757926243870,-800.0,0.00023661,2]
[385614488,1757926243879,-604.91963821,0.00023664,2]
[385614489,1757926243888,-1000.0,0.000237,2]
[385614490,1757926243898,-1500.0,0.00023764,2]
[385614491,1757926243907,-764.1591554,0.00023764,2]
[385614493,1757926243916,-2500.0,0.00023764,2]
[385614495,1757926243925,-312.60051514,0.00023764,2]
[385614497,1757926243936,-160.0,0.00023892,2]
[385614499,1757926243945,-604.9196382,0.00023948,2]
[385614501,1757926243955,-1188.63728264,0.00023954,2]
[385614503,1757926243964,-501.06223542,0.00023973,2]
[385614505,1757926243973,-501.73394212,0.00023973,2]
[385614507,1757926243983,-500.0,0.00023973,2]
[385614509,1757926243992,-501.99665933,0.00023973,2]
[385614510,1757926244003,-500.0,0.00023973,2]
[385614512,1757926244012,-184.39,0.0002398,3]
[385614514,1757926244022,-553.21,0.0002398,3]
[385614516,1757926244031,-52575.25037632,0.0002399,2]
[385614737,1757926246239,-318.27692439,0.0002399,2]
[385614743,1757926246293,-6461.76840583,0.0002399,2]
[385614746,1757926246305,-417.49785167,0.0002399,2]
[385614748,1757926246315,-84.50214833,0.00024063,2]
[385614750,1757926246325,-287.29785167,0.00024063,2]
[385614752,1757926246334,-217.82061966,0.00024149,2]
[385614754,1757926246343,-160.0,0.00024149,2]
[385614756,1757926246355,-160.0,0.00024149,2]
[385614757,1757926246364,-206.59423064,0.00024161,2]
[385614758,1757926246373,-2500.0,0.0002417,2]
[385614759,1757926246383,-720.0,0.00024202,20]
[385614760,1757926246392,-604.9196382,0.00024232,2]
[385614761,1757926246401,-3282.74673,0.00024261,2]
[385614762,1757926246411,-921.81248497,0.00024261,2]
[385614763,1757926246422,-18.71079213,0.00024261,2]
[385614764,1757926246431,-14228.3009217,0.00024261,2]
[385614765,1757926246440,-3000.0,0.00024312,2]
[385614766,1757926246450,-696.58414225,0.00024384,2]
[385614767,1757926246459,-260.0,0.0002444,2]
[385614768,1757926246467,-604.9196382,0.00024516,2]